bitfinex/quotes_BTCUSD_20250330
["timestamp","ask_amount","ask_price","bid_price","bid_amount"]
[1743310314068,1.17573605,83477.0,83476.0,6e-07]
[1743310314274,1.18774847,83477.0,83476.0,6e-07]
[1743310314487,1.21274847,83477.0,83476.0,6e-07]
[1743310314831,1.23153324,83477.0,83476.0,6e-07]
[1743310315224,1.81235745,83477.0,83476.0,6e-07]
[1743310315385,1.67863745,83477.0,83476.0,6e-07]
[1743310315584,1.77434503,83477.0,83476.0,6e-07]
[1743310315785,1.77734503,83477.0,83476.0,6e-07]
[1743310316502,1.74239398,83477.0,83476.0,6e-07]
[1743310316864,1.74539398,83477.0,83476.0,6e-07]
[1743310318265,1.72039398,83477.0,83476.0,6e-07]
[1743310318601,1.74539398,83477.0,83476.0,6e-07]
[1743310318997,1.72660921,83477.0,83476.0,6e-07]
[1743310323557,1.74539415,83477.0,83476.0,6e-07]
[1743310324469,1.59388921,83477.0,83476.0,6e-07]
[1743310324601,1.72660921,83477.0,83476.0,6e-07]
[1743310327329,1.65160921,83477.0,83476.0,6e-07]
[1743310327528,1.6703941,83477.0,83476.0,6e-07]
[1743310327730,1.5126741,83477.0,83476.0,6e-07]
[1743310327929,1.6453941,83477.0,83476.0,6e-07]
[1743310328166,1.62660921,83477.0,83476.0,6e-07]
[1743310328891,1.57910921,83477.0,83476.0,6e-07]
[1743310331054,1.57927791,83477.0,83476.0,6e-07]
[1743310331253,1.59806206,83477.0,83476.0,6e-07]
[1743310331657,1.62306206,83477.0,83476.0,6e-07]
[1743310331857,1.31906206,83477.0,83476.0,6e-07]
[1743310332410,1.27527791,83477.0,83476.0,6e-07]
[1743310333049,1.13755791,83477.0,83476.0,6e-07]
[1743310333166,1.57427791,83477.0,83476.0,6e-07]
[1743310336505,1.27027791,83477.0,83476.0,6e-07]
[1743310338447,1.30520398,83477.0,83476.0,6e-07]
[1743310341154,1.05363898,83477.0,83476.0,6e-07]
[1743310341368,1.01871291,83477.0,83476.0,6e-07]
[1743310341775,1.25829891,83477.0,83476.0,6e-07]
[1743310342509,1.13755791,83477.0,83476.0,6e-07]
[1743310344151,1.1284937,83477.0,83476.0,6e-07]
[1743310344315,1.1284937,83477.0,83476.0,0.0775006]
[1743310346974,0.8284937,83477.0,83476.0,0.0775006]
[1743310347937,0.5769287,83477.0,83476.0,0.0775006]
[1743310348142,0.5859077,83477.0,83476.0,0.13250182]
[1743310348339,0.5849077,83477.0,83476.0,0.13250182]
[1743310348545,0.5849077,83477.0,83476.0,0.0775006]
[1743310348756,0.5869077,83477.0,83476.0,0.0775006]
[1743310349217,0.5829077,83477.0,83476.0,0.0775006]
[1743310349631,0.5709287,83477.0,83476.0,0.0775006]
[1743310349833,0.5709287,83477.0,83476.0,0.13250182]
[1743310350263,0.0001687,83477.0,83476.0,0.13250182]
[1743310350461,0.0001687,83477.0,83476.0,0.18190182]
[1743310350672,0.0131477,83477.0,83476.0,0.18190182]
[1743310350866,0.0121477,83477.0,83476.0,0.18190182]
[1743310351837,0.0121477,83477.0,83476.0,0.18290182]
[1743310353675,0.0121477,83477.0,83476.0,0.1279006]
[1743310354285,0.0001687,83477.0,83476.0,0.1279006]
[1743310354439,0.0001687,83477.0,83476.0,0.18286249]
[1743310354641,0.0001687,83477.0,83476.0,0.19484149]
[1743310355668,0.0001687,83477.0,83476.0,0.18286249]
[1743310355832,0.0121477,83477.0,83476.0,0.18286249]
[1743310360710,0.0121477,83477.0,83476.0,0.13346249]
[1743310361110,0.0121477,83477.0,83476.0,0.0785006]
[1743310373085,0.0001687,83477.0,83476.0,0.1268006]
[1743310373519,0.0001687,83477.0,83476.0,0.18174419]
[1743310374765,0.0121477,83477.0,83476.0,0.18174419]
[1743310381630,0.0001687,83477.0,83476.0,0.18174419]
[1743310383103,0.2397547,83477.0,83476.0,0.18174419]
[1743310384069,0.2517337,83477.0,83476.0,0.18174419]
[1743310392684,0.2517337,83477.0,83476.0,0.13344419]
[1743310393158,0.2517337,83477.0,83476.0,0.0785006]
[1743310396420,0.0121477,83477.0,83476.0,0.0785006]
[1743310396931,0.0121477,83477.0,83476.0,0.13341553]
[1743310398099,0.0121477,83477.0,83476.0,0.0785006]
[1743310398413,0.0001687,83477.0,83476.0,0.13341553]
[1743310398618,0.0001687,83477.0,83476.0,0.14539453]
[1743310399748,0.0001687,83477.0,83476.0,0.5702185]
[1743310399958,0.0001687,83477.0,83476.0,0.56782296]
[1743310400683,0.0001687,83477.0,83476.0,0.57482985]
[1743310401252,0.0001687,83477.0,83476.0,0.57682985]
[1743310401623,0.0001687,83477.0,83476.0,0.57882985]
[1743310401827,0.0001687,83477.0,83476.0,0.70511468]
[1743310402051,0.0001687,83477.0,83476.0,0.71431311]
[1743310402432,0.0001687,83477.0,83476.0,0.74438354]
[1743310403259,0.0001687,83477.0,83476.0,0.59757886]
[1743310403460,0.0001687,83477.0,83476.0,0.51391]
[1743310403618,0.0001687,83477.0,83476.0,0.525889]
[1743310404047,0.0001687,83477.0,83476.0,0.51391]
[1743310404939,0.0001687,83477.0,83476.0,0.50690311]
[1743310405758,0.0001687,83477.0,83476.0,0.51888211]
[1743310408546,0.0001687,83477.0,83476.0,0.57479809]
[1743310409155,0.0001687,83477.0,83476.0,0.51888211]
[1743310411991,0.0001687,83477.0,83476.0,0.50690311]
[1743310413881,0.0121477,83477.0,83476.0,0.50690311]
[1743310414296,0.0121477,83477.0,83476.0,0.42940311]
[1743310416517,0.011979,83478.0,83476.0,0.42940311]
[1743310416718,0.011978,83482.0,83476.0,0.42940311]
[1743310416881,0.011978,83485.0,83479.0,0.011979]
[1743310417083,4.714e-05,83486.0,83481.0,0.251551]
[1743310417283,4.714e-05,83486.0,83482.0,0.011978]
[1743310417522,4.714e-05,83486.0,83482.0,0.06683939]
[1743310418281,4.714e-05,83486.0,83483.0,0.239569]
[1743310418482,4.714e-05,83486.0,83482.0,0.07183939]
[1743310418682,4.714e-05,83486.0,83482.0,0.016978]
[1743310418882,4.714e-05,83486.0,83483.0,0.05486139]
[1743310420278,4.714e-05,83486.0,83483.0,0.05786139]
[1743310420582,4.714e-05,83486.0,83483.0,0.05986139]
[1743310421198,0.251544,83484.0,83483.0,0.05986139]
[1743310422383,0.25158614,83486.0,83483.0,0.05986139]
[1743310422585,0.011978,83484.0,83483.0,0.05986139]
[1743310423000,0.251544,83484.0,83483.0,0.05986139]
[1743310423226,0.011978,83484.0,83483.0,0.05786139]
[1743310423362,0.011978,83484.0,83483.0,0.05486139]
[1743310423558,0.251544,83484.0,83483.0,0.06086139]
[1743310423782,0.011978,83484.0,83483.0,0.006]
[1743310423959,0.251544,83484.0,83483.0,0.06086139]
[1743310424163,0.251544,83484.0,83483.0,0.006]
[1743310424742,0.251544,83484.0,83483.0,0.06086139]
[1743310424946,0.251544,83484.0,83483.0,0.006]
[1743310425153,0.251544,83484.0,83483.0,0.06086139]
[1743310425380,0.251544,83484.0,83483.0,0.006]
[1743310425953,0.251544,83484.0,83483.0,0.06086139]
[1743310426157,0.251544,83484.0,83483.0,0.006]
[1743310426359,0.251544,83484.0,83483.0,0.06086139]
[1743310426517,0.251544,83484.0,83483.0,0.006]
[1743310426717,0.251544,83484.0,83483.0,0.06086139]
[1743310430150,0.00021574,83486.0,83483.0,0.06086139]
[1743310430960,0.00021574,83486.0,83483.0,0.30043039]
[1743310431161,0.00021574,83486.0,83483.0,0.29743039]
[1743310431357,0.00021574,83486.0,83483.0,0.29443039]
[1743310431585,0.00021574,83486.0,83483.0,0.05486139]
[1743310431826,0.23977674,83486.0,83483.0,0.05486139]
[1743310432057,0.25175474,83486.0,83481.0,0.251552]
[1743310432237,0.25175474,83486.0,83484.0,0.05485305]
[1743310432435,0.25175474,83486.0,83481.0,0.251552]
[1743310432638,0.25175474,83486.0,83485.0,0.05485305]
[1743310432834,0.25175474,83486.0,83481.0,0.251552]
[1743310433038,0.25175474,83486.0,83483.0,0.002]
[1743310433359,0.25175474,83486.0,83483.0,0.003]
[1743310433710,0.25175474,83486.0,83484.0,0.05485305]
[1743310434135,0.01219374,83486.0,83483.0,0.002]
[1743310434359,0.01219374,83486.0,83485.0,0.05485305]
[1743310434519,0.01219374,83486.0,83483.0,0.002]
[1743310434715,0.25175474,83486.0,83485.0,0.05485305]
[1743310434996,0.25175474,83486.0,83484.0,0.003]
[1743310435117,0.25175474,83486.0,83485.0,0.05485305]
[1743310435355,0.25175474,83486.0,83484.0,0.003]
[1743310435589,0.25175474,83486.0,83485.0,0.05485305]
[1743310435941,0.01219374,83486.0,83485.0,0.05485305]
[1743310436394,0.25175474,83486.0,83485.0,0.05485305]
[1743310437090,0.00021574,83486.0,83485.0,0.05485305]
[1743310437293,0.00021574,83486.0,83485.0,0.002]
[1743310437511,0.00021574,83486.0,83485.0,0.05685305]
[1743310437912,0.23977674,83486.0,83485.0,0.05685305]
[1743310438154,0.25175474,83486.0,83485.0,0.05985305]
[1743310439846,0.55175474,83486.0,83485.0,0.05985305]
[1743310440300,0.55175474,83486.0,83485.0,0.005]
[1743310440747,0.30021574,83486.0,83485.0,0.005]
[1743310441716,0.30021574,83486.0,83485.0,0.05984295]
[1743310442054,0.00021574,83486.0,83485.0,0.09218004]
[1743310442255,0.00021574,83486.0,83485.0,0.44155711]
[1743310442595,0.00021574,83486.0,83485.0,0.43916189]
[1743310443069,0.00021574,83486.0,83485.0,0.44616664]
[1743310443241,0.00021574,83486.0,83485.0,0.44316664]
[1743310443804,0.00021574,83486.0,83485.0,0.44116664]
[1743310444007,0.00021574,83486.0,83485.0,0.45216664]
[1743310445840,0.00021574,83486.0,83485.0,0.44516189]
[1743310447327,0.00021574,83486.0,83485.0,0.4128248]
[1743310449176,0.00021574,83486.0,83485.0,0.1612838]
[1743310449379,0.00021574,83486.0,83485.0,0.14674295]
[1743310456817,0.23977674,83486.0,83485.0,0.06584295]
[1743310457529,0.25175474,83486.0,83485.0,0.06584295]
[1743310459090,0.55175474,83486.0,83485.0,0.06584295]
[1743310460015,0.55175474,83486.0,83485.0,0.011]
[1743310460814,0.55175474,83486.0,83485.0,0.005]
[1743310461255,0.55175474,83486.0,83485.0,0.004]
[1743310461643,0.55175474,83486.0,83485.0,0.008]
[1743310461793,0.3,83485.0,83480.0,0.011978]
[1743310462186,0.3,83485.0,83481.0,0.30636078]
[1743310462389,0.3,83485.0,83482.0,0.011978]
[1743310462598,0.3,83485.0,83483.0,0.239569]
[1743310463227,0.3,83485.0,83484.0,0.05482229]
[1743310463431,0.00021574,83486.0,83484.0,0.05482229]
[1743310463834,0.00021574,83486.0,83482.0,0.087578]
[1743310464039,0.31219374,83486.0,83485.0,0.05482229]
[1743310464392,0.251541,83485.0,83482.0,0.0756]
[1743310464748,0.251541,83485.0,83483.0,0.0548114]
[1743310464950,0.251541,83485.0,83484.0,0.003]
[1743310465354,0.251541,83485.0,83477.0,0.1345372]
[1743310465355,0.3,83482.0,83477.0,0.2101372]
[1743310466935,0.311978,83484.0,83477.0,0.4497232]
[1743310467210,0.311978,83484.0,83477.0,0.4617022]
[1743310467408,0.311978,83484.0,83477.0,0.4657022]
[1743310467817,0.311978,83484.0,83477.0,0.4687022]
[1743310467994,0.311978,83484.0,83477.0,0.4647022]
[1743310468175,0.3,83482.0,83477.0,0.2251162]
[1743310468600,0.3,83482.0,83477.0,0.2281162]
[1743310469216,0.3,83482.0,83477.0,0.2251162]
[1743310469359,0.011978,83483.0,83477.0,0.4647022]
[1743310469642,0.011978,83483.0,83477.0,0.53178164]
[1743310469839,0.011978,83483.0,83477.0,0.4647022]
[1743310470599,0.3,83482.0,83478.0,0.05481912]
[1743310471811,0.3,83482.0,83478.0,0.05881912]
[1743310472207,0.3,83482.0,83478.0,0.06181912]
[1743310473350,0.251548,83483.0,83478.0,0.06181912]
[1743310473351,0.011978,83483.0,83478.0,0.06181912]
[1743310474700,0.011978,83483.0,83478.0,0.05481912]
[1743310474851,0.3,83482.0,83478.0,0.05481912]
[1743310475053,0.3,83482.0,83478.0,0.06081912]
[1743310475878,0.3,83482.0,83478.0,0.05481912]
[1743310476190,0.3,83482.0,83478.0,0.05781912]
[1743310476542,0.3,83482.0,83478.0,0.06181912]
[1743310480863,0.05134039,83482.0,83478.0,0.06181912]
[1743310482660,0.251547,83483.0,83478.0,0.16281375]
[1743310483818,0.00021574,83486.0,83481.0,0.011978]
[1743310484019,0.00021574,83486.0,83482.0,0.011978]
[1743310484279,0.0001686,83483.0,83482.0,0.05481658]
[1743310484618,0.0001686,83483.0,83480.0,0.251556]
[1743310484871,0.0001686,83483.0,83482.0,0.05481634]
[1743310485082,0.0001686,83483.0,83481.0,0.05481207]
[1743310485271,0.0001686,83483.0,83482.0,0.013978]
[1743310485474,0.0001686,83483.0,83482.0,0.25455]
[1743310485675,0.0001686,83483.0,83482.0,0.30936207]
[1743310486071,0.0001686,83483.0,83482.0,0.30636207]
[1743310486684,0.0001686,83483.0,83482.0,0.05481207]
[1743310487319,0.0121466,83483.0,83482.0,0.05481207]
[1743310487927,0.0121466,83483.0,83477.0,0.0003372]
[1743310487928,0.251563,83478.0,83477.0,0.0003372]
[1743310488285,0.251563,83478.0,83477.0,0.05514426]
[1743310488488,0.0001686,83483.0,83477.0,0.06712326]
[1743310488712,0.0001686,83483.0,83478.0,0.011979]
[1743310489114,0.2517176,83483.0,83479.0,0.05480706]
[1743310489324,0.239575,83481.0,83479.0,0.05480706]
[1743310489493,0.239575,83481.0,83477.0,0.0093372]
[1743310489695,0.239575,83481.0,83477.0,0.0053372]
[1743310489898,0.011978,83480.0,83478.0,0.05780706]
[1743310490105,0.25156,83479.0,83478.0,0.05780706]
[1743310490758,0.25156,83479.0,83478.0,0.003]
[1743310491569,0.25156,83479.0,83477.0,0.0003372]
[1743310491875,0.25156,83479.0,83478.0,0.05982397]
[1743310492178,0.25156,83479.0,83478.0,0.06382397]
[1743310492374,0.25156,83479.0,83478.0,0.05982397]
[1743310492675,0.25156,83479.0,83477.0,0.0003372]
[1743310492880,0.25156,83479.0,83477.0,0.0043372]
[1743310493038,0.25156,83479.0,83478.0,0.05482537]
[1743310493442,0.011979,83478.0,83477.0,0.0003372]
[1743310493810,0.011979,83478.0,83477.0,0.06016257]
[1743310494398,0.011979,83478.0,83477.0,0.05516257]
[1743310494626,0.011979,83478.0,83477.0,0.06016257]
[1743310495307,0.011979,83478.0,83477.0,0.06416257]
[1743310498031,0.011979,83478.0,83477.0,0.0093372]
[1743310498912,0.02379633,83478.0,83477.0,0.0093372]
[1743310502061,0.36205692,83478.0,83477.0,0.0093372]
[1743310502264,0.32379633,83478.0,83477.0,0.0093372]
[1743310503014,0.32379633,83478.0,83477.0,0.0053372]
[1743310503211,0.32379633,83478.0,83477.0,0.0083372]
[1743310503621,0.32379633,83478.0,83477.0,0.0003372]
[1743310503816,0.32379633,83478.0,83477.0,0.0053372]
[1743310504349,0.32379633,83478.0,83477.0,0.0023372]
[1743310504549,0.37359633,83478.0,83477.0,0.0023372]
[1743310504753,0.37359633,83478.0,83477.0,0.0043372]
[1743310507073,0.37359633,83478.0,83477.0,0.0023372]
[1743310507511,0.37359633,83478.0,83477.0,0.0033372]
[1743310507846,0.37359633,83478.0,83477.0,0.0023372]
[1743310508204,0.37359633,83478.0,83477.0,0.0013372]
[1743310508613,0.37359633,83478.0,83477.0,0.0023372]
[1743310508788,0.37359633,83478.0,83477.0,0.0013372]
[1743310509143,0.37359633,83478.0,83477.0,0.0023372]
[1743310523823,0.41185692,83478.0,83477.0,2e-07]
[1743310524025,0.45639633,83478.0,83477.0,2e-07]
[1743310524405,0.52957451,83478.0,83477.0,2e-07]
[1743310525030,0.551565,83477.0,83476.0,6e-07]
[1743310525171,0.58982559,83477.0,83476.0,6e-07]
[1743310526663,0.59182559,83477.0,83476.0,6e-07]
[1743310527072,0.59382559,83477.0,83476.0,6e-07]
[1743310527275,0.011979,83475.0,83474.0,6e-07]
[1743310527478,0.448979,83475.0,83474.0,6e-07]
[1743310528482,0.48823959,83475.0,83474.0,6e-07]
[1743310528857,0.48923959,83475.0,83474.0,6e-07]
[1743310529606,0.52415569,83475.0,83474.0,6e-07]
[1743310532600,0.52415569,83475.0,83446.0,0.0796]
[1743310532601,0.011983,83447.0,83446.0,0.0796]
[1743310532936,0.011983,83447.0,83446.0,0.14039685]
[1743310533347,0.251656,83447.0,83446.0,0.14039685]
[1743310533541,0.26399019,83447.0,83446.0,0.14039685]
[1743310533742,0.57755731,83447.0,83446.0,0.06679685]
[1743310533943,0.56405226,83447.0,83446.0,0.06679685]
[1743310534170,0.56405226,83447.0,83446.0,0.006]
[1743310534862,0.251677,83440.0,83439.0,0.0799372]
[1743310535082,0.551677,83440.0,83439.0,2e-07]
[1743310535284,0.551731,83422.0,83421.0,0.002]
[1743310538660,0.551731,83422.0,83421.0,0.006]
[1743310539271,0.551731,83422.0,83421.0,0.004]
[1743310539638,0.551731,83422.0,83421.0,0.006]
[1743310541577,0.551731,83422.0,83421.0,0.004]
[1743310541792,0.551731,83422.0,83421.0,0.002]
[1743310544118,0.551731,83422.0,83421.0,0.0023372]
[1743310548271,0.552731,83422.0,83421.0,0.0023372]
[1743310548477,0.553731,83422.0,83421.0,0.0023372]
[1743310563751,0.687851,83422.0,83421.0,0.0023372]
[1743310564183,0.70135605,83422.0,83421.0,0.0023372]
[1743310564397,0.687851,83422.0,83421.0,0.0023372]
[1743310569258,0.72289582,83422.0,83421.0,0.0023372]
[1743310577194,0.77179582,83422.0,83421.0,0.0023372]
[1743310582043,0.51725709,83422.0,83421.0,0.0023372]
[1743310582249,0.48221227,83422.0,83421.0,0.0023372]
[1743310582432,0.72195627,83422.0,83421.0,0.0023372]
[1743310582632,0.73394327,83422.0,83421.0,0.0023372]
[1743310584777,0.76901822,83422.0,83421.0,0.0023372]
[1743310584978,0.76901822,83422.0,83421.0,2e-07]
[1743310585530,0.80627881,83422.0,83421.0,2e-07]
[1743310585683,0.80527881,83422.0,83421.0,2e-07]
[1743310585882,0.80827881,83422.0,83421.0,2e-07]
[1743310586695,0.81327881,83422.0,83421.0,2e-07]
[1743310586908,0.81627881,83422.0,83421.0,2e-07]
[1743310588734,0.81027881,83422.0,83421.0,2e-07]
[1743310589110,0.77901822,83422.0,83421.0,2e-07]
[1743310593927,0.77829822,83422.0,83421.0,2e-07]
[1743310595926,1.08229822,83422.0,83421.0,2e-07]
[1743310597387,0.551746,83417.0,83416.0,4e-07]
[1743310597580,0.311988,83416.0,83415.0,6e-07]
[1743310597943,0.34706295,83416.0,83415.0,6e-07]
[1743310598498,0.38532354,83416.0,83415.0,6e-07]
[1743310598693,0.39032354,83416.0,83415.0,1.3e-07]
[1743310599391,0.39332354,83416.0,83415.0,1.3e-07]
[1743310599944,0.39632354,83416.0,83415.0,1.3e-07]
[1743310600615,0.09632354,83416.0,83415.0,1.3e-07]
[1743310601738,0.22956354,83416.0,83415.0,1.3e-07]
[1743310601940,0.19130295,83416.0,83415.0,1.3e-07]
[1743310603106,1.06254295,83416.0,83415.0,1.3e-07]
[1743310604973,1.08133893,83416.0,83415.0,1.3e-07]
[1743310605276,1.06254295,83416.0,83415.0,1.3e-07]
[1743310605569,1.06254295,83416.0,83415.0,0.00033733]
[1743310606594,1.06250295,83416.0,83415.0,0.00033733]
[1743310606776,0.92930295,83416.0,83415.0,0.00033733]
[1743310606956,1.06250295,83416.0,83415.0,0.00033733]
[1743310609278,1.08129893,83416.0,83415.0,0.00033733]
[1743310613097,1.06250295,83416.0,83415.0,0.00033733]
[1743310615066,1.36650295,83416.0,83415.0,0.00033733]
[1743310617194,1.36667155,83416.0,83415.0,0.00033733]
[1743310618734,1.40493214,83416.0,83415.0,3.3e-07]
[1743310618865,1.4237285,83416.0,83415.0,3.3e-07]
[1743310619288,1.40493214,83416.0,83415.0,3.3e-07]
[1743310619496,1.82123214,83416.0,83415.0,3.3e-07]
[1743310620215,1.81523214,83416.0,83415.0,3.3e-07]
[1743310620414,1.82023214,83416.0,83415.0,3.3e-07]
[1743310620895,0.011989,83404.0,83401.0,1.3e-07]
[1743310621087,0.01199,83402.0,83401.0,0.00047236]
[1743310621292,0.48506495,83402.0,83401.0,0.00047236]
[1743310621624,0.76312754,83402.0,83401.0,0.00047236]
[1743310622126,0.72486695,83402.0,83401.0,0.00047236]
[1743310622515,1.02686695,83402.0,83401.0,0.00047236]
[1743310623130,1.04383433,83402.0,83401.0,0.00047236]
[1743310624071,0.90883433,83402.0,83401.0,0.00047236]
[1743310624241,1.04183433,83402.0,83401.0,0.00047236]
[1743310626276,0.90883433,83402.0,83401.0,0.00047236]
[1743310626484,1.04183433,83402.0,83401.0,0.00047236]
[1743310626839,1.05091736,83402.0,83401.0,0.07967236]
[1743310631657,0.91791736,83402.0,83401.0,0.07967236]
[1743310631956,1.05091736,83402.0,83401.0,0.07967236]
[1743310638127,0.74691736,83402.0,83401.0,0.07967236]
[1743310641866,0.74691736,83402.0,83401.0,0.00047236]
[1743310642067,0.74725476,83402.0,83401.0,0.00047236]
[1743310642252,0.78551535,83402.0,83401.0,0.00047236]
[1743310643904,0.79051535,83402.0,83401.0,0.00047236]
[1743310645516,1.03386535,83402.0,83401.0,3.6e-07]
[1743310645653,0.79051535,83402.0,83401.0,3.6e-07]
[1743310649669,1.09451535,83402.0,83401.0,3.6e-07]
[1743310650294,1.20253483,83402.0,83401.0,3.6e-07]
[1743310651163,0.251874,83375.0,83374.0,0.0779]
[1743310651329,0.251874,83375.0,83361.0,0.002]
[1743310651330,0.5519,83366.0,83361.0,0.002]
[1743310651541,0.551912,83362.0,83361.0,0.002]
[1743310651749,0.59911356,83362.0,83361.0,0.002]
[1743310652089,0.59911356,83362.0,83349.0,0.0779]
[1743310652090,0.551951,83350.0,83349.0,0.0779]
[1743310652290,0.551951,83350.0,83331.0,0.0023372]
[1743310652291,0.011999,83338.0,83331.0,0.0023372]
[1743310652503,0.883359,83338.0,83331.0,0.0023372]
[1743310652695,0.883359,83338.0,83337.0,0.00047879]
[1743310656993,1.016519,83338.0,83337.0,0.00047879]
[1743310657403,1.02574643,83338.0,83337.0,0.00047879]
[1743310659170,0.89258643,83338.0,83337.0,0.00047879]
[1743310659377,1.02570643,83338.0,83337.0,0.00047879]
[1743310659556,1.02574643,83338.0,83337.0,0.00047879]
[1743310661470,1.02674643,83338.0,83337.0,0.00047879]
[1743310661761,1.02774643,83338.0,83337.0,0.00047879]
[1743310663596,2.949819,83338.0,83337.0,0.00047879]
[1743310664417,2.948819,83338.0,83337.0,0.00047879]
[1743310664659,2.95679372,83338.0,83337.0,0.00047879]
[1743310664846,2.96179372,83338.0,83337.0,0.00047879]
[1743310665007,2.96679372,83338.0,83337.0,0.00047879]
[1743310666971,2.96679372,83338.0,83337.0,7.9e-07]
[1743310667205,2.96683372,83338.0,83337.0,7.9e-07]
[1743310667918,2.96183372,83338.0,83337.0,7.9e-07]
[1743310668219,2.96683372,83338.0,83337.0,7.9e-07]
[1743310668771,2.96183372,83338.0,83337.0,7.9e-07]
[1743310669001,2.96683372,83338.0,83337.0,7.9e-07]
[1743310670133,2.96683372,83338.0,83331.0,0.0023372]
[1743310670134,0.552003,83332.0,83331.0,0.00229799]
[1743310670334,0.552003,83332.0,83331.0,0.0024396]
[1743310671391,0.557003,83332.0,83331.0,0.0024396]
[1743310671785,0.561003,83332.0,83331.0,0.0024396]
[1743310672506,0.552033,83322.0,83317.0,0.0001686]
[1743310672695,0.685193,83322.0,83321.0,0.12004721]
[1743310674177,0.69699915,83322.0,83321.0,0.12004721]
[1743310674383,0.69899915,83322.0,83321.0,0.12004721]
[1743310674819,0.70099915,83322.0,83321.0,0.12004721]
[1743310676821,0.70099915,83322.0,83321.0,0.12021601]
[1743310677026,1.27275915,83322.0,83321.0,0.12021601]
[1743310677498,1.13959915,83322.0,83321.0,0.12021601]
[1743310677761,1.27271915,83322.0,83321.0,0.12021601]
[1743310686709,1.27271915,83322.0,83321.0,1e-08]
[1743310686921,0.552046,83318.0,83317.0,6.1e-07]
[1743310687134,2.003946,83318.0,83317.0,0.00014224]
[1743310687347,2.483346,83318.0,83317.0,0.00014224]
[1743310688941,2.488346,83318.0,83317.0,0.00014224]
[1743310690083,2.493346,83318.0,83317.0,0.00014224]
[1743310698969,2.626506,83318.0,83317.0,0.07674224]
[1743310700042,2.493346,83318.0,83317.0,0.07674224]
[1743310700961,2.60136548,83318.0,83317.0,0.07674224]
[1743310701269,2.60170268,83318.0,83317.0,0.07674224]
[1743310705136,2.60170268,83318.0,83317.0,0.00014224]
[1743310705335,2.4936832,83318.0,83317.0,0.00014224]
[1743310706217,2.52872315,83318.0,83317.0,0.00014224]
[1743310710772,3.10064315,83318.0,83317.0,0.00014224]
[1743310714168,3.20866263,83318.0,83317.0,0.00014224]
[1743310717265,3.10064315,83318.0,83317.0,0.00014224]
[1743310720075,3.23380315,83318.0,83317.0,0.00014224]
[1743310725678,3.23880315,83318.0,83317.0,2.4e-07]
[1743310727387,3.23380315,83318.0,83317.0,2.4e-07]
[1743310735351,3.23388315,83318.0,83317.0,2.4e-07]
[1743310735560,3.53788315,83318.0,83317.0,2.4e-07]
[1743310735940,3.55670156,83318.0,83317.0,2.4e-07]
[1743310736138,3.53788315,83318.0,83317.0,2.4e-07]
[1743310736746,3.53788315,83318.0,83317.0,8.4e-07]
[1743310738211,3.56288315,83318.0,83317.0,8.4e-07]
[1743310738956,3.58170185,83318.0,83317.0,8.4e-07]
[1743310739159,3.57670185,83318.0,83317.0,8.4e-07]
[1743310739336,3.56288315,83318.0,83317.0,8.4e-07]
[1743310740121,3.55788315,83318.0,83317.0,8.4e-07]
[1743310740404,3.56288315,83318.0,83317.0,8.4e-07]
[1743310744055,3.27770191,83318.0,83317.0,8.4e-07]
[1743310744494,3.25888315,83318.0,83317.0,8.4e-07]
[1743310744863,3.40464315,83318.0,83317.0,8.4e-07]
[1743310745067,3.40464315,83318.0,83317.0,0.08020084]
[1743310745270,2.53272315,83318.0,83317.0,0.08020084]
[1743310745694,2.83272315,83318.0,83317.0,0.08020084]
[1743310745922,2.1936832,83318.0,83317.0,0.08020084]
[1743310746331,2.2366372,83318.0,83317.0,0.08020084]
[1743310746517,2.2416372,83318.0,83317.0,0.08020084]
[1743310746852,2.2366372,83318.0,83317.0,0.08020084]
[1743310747062,2.4886832,83318.0,83317.0,0.08020084]
[1743310747292,2.4926832,83318.0,83317.0,0.08020084]
[1743310747778,2.4876832,83318.0,83317.0,0.08020084]
[1743310748104,2.4926832,83318.0,83317.0,0.08020084]
[1743310748589,2.4876832,83318.0,83317.0,0.08020084]
[1743310748787,2.4916832,83318.0,83317.0,0.08020084]
[1743310754916,2.2396372,83318.0,83317.0,0.08020084]
[1743310755125,0.3203392,83318.0,83317.0,0.08020084]
[1743310756441,0.5603832,83318.0,83317.0,0.08020084]
[1743310784070,0.5563832,83318.0,83317.0,0.08020084]
[1743310784265,0.5523832,83318.0,83317.0,0.08020084]
[1743310784903,0.5543832,83318.0,83317.0,0.08020084]
[1743310785477,0.5563832,83318.0,83317.0,0.08020084]
[1743310801166,0.5563832,83318.0,83317.0,8.4e-07]
[1743310802081,0.3043372,83318.0,83317.0,0.08100084]
[1743310802291,0.3043372,83318.0,83317.0,0.33304984]
[1743310802554,0.3043372,83318.0,83317.0,0.39369069]
[1743310802750,0.0043372,83318.0,83317.0,0.39369069]
[1743310803220,0.0023372,83318.0,83317.0,0.39369069]
[1743310803907,0.0003372,83318.0,83317.0,0.39369069]
[1743310804545,0.0003372,83318.0,83317.0,0.14164169]
[1743310804749,0.0123392,83318.0,83317.0,0.14164169]
[1743310805101,0.2523832,83318.0,83317.0,0.14164169]
[1743310805814,0.0123392,83318.0,83317.0,0.14164169]
[1743310807057,0.0003372,83318.0,83317.0,0.14164169]
[1743310808217,0.2403812,83318.0,83317.0,0.14164169]
[1743310808419,0.2523832,83318.0,83317.0,0.14164169]
[1743310809550,0.0123392,83318.0,83317.0,0.14164169]
[1743310809752,0.2523832,83318.0,83317.0,0.14164169]
[1743310817460,0.2523832,83318.0,83317.0,0.19329877]
[1743310817752,0.252041,83320.0,83317.0,0.19329877]
[1743310818292,0.240044,83318.0,83317.0,0.19329877]
[1743310818490,0.252046,83318.0,83317.0,0.19329877]
[1743310820790,0.252046,83318.0,83317.0,0.17875792]
[1743310821002,0.252046,83318.0,83317.0,0.13265792]
[1743310825633,0.012002,83318.0,83317.0,0.13265792]
[1743310825858,0.252046,83318.0,83317.0,0.13265792]
[1743310837129,0.012002,83318.0,83317.0,0.13265792]
[1743310837623,0.252046,83318.0,83317.0,0.13265792]
[1743310837799,0.012002,83318.0,83317.0,0.13265792]
[1743310837987,0.240044,83318.0,83317.0,0.13265792]
[1743310839015,0.2403812,83318.0,83317.0,0.13265792]
[1743310841433,0.0003372,83318.0,83317.0,0.14465992]
[1743310841632,0.0003372,83318.0,83317.0,0.24788727]
[1743310842723,0.0003372,83318.0,83317.0,0.23588527]
[1743310844556,0.0003372,83318.0,83317.0,0.13265792]
[1743310857163,0.0003372,83318.0,83317.0,0.38470692]
[1743310857563,0.0003372,83318.0,83317.0,0.39924777]
[1743310862582,0.0003372,83318.0,83317.0,0.44814777]
[1743310863012,0.0003372,83318.0,83317.0,0.19609877]
[1743310863432,0.0003372,83318.0,83317.0,0.14719877]
[1743310863640,0.0003372,83318.0,83317.0,0.06619877]